bitfinex/quotes_ETHUSD_20240925
["timestamp","ask_amount","ask_price","bid_price","bid_amount"]
[1727250116361,0.05728754,2630.5,2630.1,3.802]
[1727250117584,0.05728754,2630.5,2630.0,3.8022]
[1727250118168,0.05728754,2630.5,2630.1,3.0]
[1727250118779,0.05728754,2630.5,2630.0,3.0]
[1727250118780,4.84018733,2630.5,2630.0,3.0]
[1727250119101,4.84018733,2630.5,2630.0,6.80226]
[1727250120391,1.03862733,2630.5,2630.0,6.80226]
[1727250120997,4.84019733,2630.5,2630.0,6.80226]
[1727250121179,1.02036586,2630.4,2630.0,6.80226]
[1727250121379,0.05742129,2630.3,2630.0,6.80226]
[1727250121915,3.80157,2630.5,2630.0,6.80226]
[1727250122371,0.05739295,2630.4,2630.0,6.80226]
[1727250123088,0.05739295,2630.4,2630.1,3.80213]
[1727250123598,0.05728675,2630.3,2630.1,3.80213]
[1727250124109,0.7635,2630.6,2630.1,3.80213]
[1727250124314,0.7635,2630.6,2630.1,3.0]
[1727250124315,0.05713094,2630.2,2630.1,3.0]
[1727250124618,3.80171,2630.4,2630.0,3.0]
[1727250124980,0.05808295,2630.3,2630.0,3.0]
[1727250125183,0.05808295,2630.3,2630.0,6.80226]
[1727250125488,0.7635,2630.3,2630.0,3.0]
[1727250125701,0.05798257,2630.2,2630.0,3.0]
[1727250126114,0.7635,2630.3,2630.0,6.80226]
[1727250126623,0.05798257,2630.2,2630.0,6.80226]
[1727250127034,0.7635,2630.3,2630.0,3.0]
[1727250127320,0.05788218,2630.1,2630.0,3.0]
[1727250127519,0.7635,2630.3,2630.0,6.80228]
[1727250127823,0.7635,2630.3,2630.0,3.0]
[1727250128031,0.05798257,2630.2,2630.0,3.0]
[1727250128392,0.7635,2630.3,2630.0,3.0]
[1727250128585,0.05591697,2630.2,2630.0,3.0]
[1727250128798,0.7635,2630.3,2630.0,3.0]
[1727250128998,0.05584381,2630.2,2630.0,3.0]
[1727250129213,0.7635,2630.3,2630.0,3.0]
[1727250129403,0.05566215,2630.2,2630.0,6.80226]
[1727250129726,0.7635,2630.3,2630.0,6.80226]
[1727250129883,0.05556175,2630.1,2630.0,3.0]
[1727250130085,0.7635,2630.3,2630.0,3.0]
[1727250130286,0.05556175,2630.1,2630.0,3.0]
[1727250130529,0.7635,2630.3,2630.0,3.0]
[1727250130726,0.05556175,2630.1,2630.0,3.0]
[1727250130904,0.7635,2630.3,2630.0,3.0]
[1727250131086,0.05556175,2630.1,2630.0,3.0]
[1727250131283,0.7635,2630.3,2630.0,3.0]
[1727250131517,0.05356977,2630.1,2630.0,6.80225]
[1727250131720,0.7635,2630.3,2630.0,6.80225]
[1727250132228,0.05367016,2630.2,2630.0,6.80225]
[1727250132441,0.05367016,2630.2,2630.0,8.10305078]
[1727250132606,0.7635,2630.3,2630.0,8.10305078]
[1727250132930,0.05367016,2630.2,2630.0,8.10305078]
[1727250133138,0.05367016,2630.2,2630.1,3.80213]
[1727250133445,0.05360973,2630.2,2630.1,3.80213]
[1727250133932,0.7635,2630.3,2630.0,8.10304078]
[1727250134231,0.05396431,2630.2,2630.0,8.10304078]
[1727250134836,0.05390522,2630.1,2630.0,8.10304078]
[1727250135202,0.7635,2630.3,2630.0,9.29357586]
[1727250135436,0.0540056,2630.2,2630.0,4.30080078]
[1727250135593,0.0540056,2630.2,2630.1,3.80213]
[1727250135789,0.7635,2630.3,2630.1,3.80204]
[1727250136033,0.0540056,2630.2,2630.1,3.80204]
[1727250136396,0.7635,2630.3,2630.1,3.80204]
[1727250136597,0.0540056,2630.2,2630.1,3.80204]
[1727250136826,0.7635,2630.3,2630.1,3.80204]
[1727250137029,0.0540056,2630.2,2630.1,3.80204]
[1727250137394,0.7635,2630.3,2630.1,3.80204]
[1727250137618,0.0540056,2630.2,2630.0,8.10301078]
[1727250137935,0.7635,2630.3,2630.0,3.0]
[1727250138111,0.05390522,2630.1,2630.0,3.0]
[1727250138312,0.7635,2630.3,2630.0,3.0]
[1727250138791,0.0540056,2630.2,2630.0,6.80228]
[1727250138988,0.7635,2630.3,2630.0,6.80228]
[1727250139192,0.0540056,2630.2,2630.0,6.80228]
[1727250139394,0.7635,2630.3,2630.0,6.80228]
[1727250139626,0.0540056,2630.2,2630.0,6.80228]
[1727250139831,0.7635,2630.3,2630.0,6.80228]
[1727250139998,0.7635,2630.3,2629.9,8.10313078]
[1727250139999,0.05390522,2630.1,2629.9,8.10313078]
[1727250140204,0.7635,2630.3,2629.9,3.0]
[1727250140419,0.0540056,2630.2,2629.9,3.0]
[1727250140736,4.56535,2630.3,2629.9,3.0]
[1727250140958,0.05390522,2630.1,2629.9,3.0]
[1727250141127,3.80208,2630.2,2629.7,7.59497]
[1727250141316,0.05380483,2630.0,2629.7,7.59497]
[1727250141512,0.05390522,2630.1,2629.7,7.59497]
[1727250141731,0.05370443,2629.9,2629.7,7.59497]
[1727250141927,3.80208,2630.2,2629.7,7.59497]
[1727250142550,0.05390522,2630.1,2629.7,7.59497]
[1727250143151,0.05390522,2630.1,2629.7,8.86482208]
[1727250143514,0.05390522,2630.1,2629.7,10.16562286]
[1727250144314,0.05390522,2630.1,2629.7,6.36295286]
[1727250144659,0.05390522,2630.1,2629.7,10.16565286]
[1727250145253,3.85604522,2630.1,2629.7,6.36295286]
[1727250145411,3.85604522,2630.1,2629.7,5.09310078]
[1727250145811,3.80229,2630.0,2629.6,3.0]
[1727250146118,0.81720443,2629.9,2629.6,3.0]
[1727250146912,0.05370443,2629.9,2629.6,3.0]
[1727250147248,3.85621443,2629.9,2629.5,0.7788]
[1727250149443,3.80265,2629.8,2629.4,4.30080078]
[1727250149839,0.05328634,2629.7,2629.4,4.30080078]
[1727250150354,3.80265,2629.8,2629.4,5.18908986]
[1727250150563,0.05318592,2629.6,2629.4,5.18908986]
[1727250150745,3.80265,2629.8,2629.4,5.18908986]
[1727250150948,0.05308549,2629.5,2629.4,5.18908986]
[1727250151236,0.0530392,2629.5,2629.4,5.18908986]
[1727250151456,0.0530392,2629.5,2629.4,3.80314]
[1727250151671,0.7635,2629.7,2629.4,3.0]
[1727250151815,0.0529929,2629.5,2629.3,3.7788]
[1727250152179,4.56622,2629.7,2629.3,3.7788]
[1727250152559,0.05309333,2629.6,2629.3,3.7788]
[1727250152756,0.05309333,2629.6,2629.3,3.0]
[1727250152974,3.85604333,2629.6,2629.1,6.80357]
[1727250153252,3.80294,2629.6,2629.1,8.81126408]
[1727250154222,0.0529929,2629.5,2629.2,1.30080078]
[1727250154447,3.80294,2629.6,2629.2,1.30080078]
[1727250155658,0.0529929,2629.5,2629.2,1.30080078]
[1727250156079,3.8560029,2629.5,2629.2,1.30080078]
[1727250156391,3.80301,2629.5,2629.2,1.30080078]
[1727250156685,0.05289246,2629.4,2629.2,1.30080078]
[1727250158385,0.05289246,2629.4,2629.2,2.31200727]
[1727250158598,3.80292,2629.6,2629.2,2.31200727]
[1727250158755,0.05263015,2629.3,2629.2,2.31200727]
[1727250159287,3.80292,2629.6,2629.2,2.31200727]
[1727250159445,0.05263015,2629.3,2629.1,3.0]
[1727250159651,0.05263015,2629.3,2629.0,1.30080078]
[1727250159652,3.8031,2629.5,2629.0,1.30080078]
[1727250159882,0.7635,2629.3,2628.9,4.58265]
[1727250160273,0.05244566,2629.2,2628.9,4.58265]
[1727250160694,0.7635,2629.3,2628.9,4.58265]
[1727250160889,0.05234519,2629.1,2628.9,4.58265]
[1727250161051,0.7635,2629.3,2629.0,3.0]
[1727250161649,4.56679,2629.3,2629.0,3.0]
[1727250162047,0.7635,2629.3,2629.0,3.0]
[1727250162499,0.05244566,2629.2,2629.0,3.0]
[1727250162662,0.7635,2629.3,2629.0,3.0]
[1727250162852,0.05234519,2629.1,2629.0,3.0]
[1727250163053,0.7635,2629.3,2629.0,3.0]
[1727250163252,0.05234519,2629.1,2629.0,3.0]
[1727250163493,0.7635,2629.3,2629.0,3.0]
[1727250163671,0.05234519,2629.1,2629.0,3.0]
[1727250163870,4.5668,2629.3,2629.0,3.0]
[1727250164080,0.05234519,2629.1,2628.8,6.80401]
[1727250164301,0.05234519,2629.1,2628.7,4.59355]
[1727250164302,3.80362,2629.1,2628.7,3.0]
[1727250164596,3.80362,2629.1,2628.5,0.7895]
[1727250164597,3.80387,2628.9,2628.5,0.7895]
[1727250164980,0.05196259,2628.8,2628.5,0.7895]
[1727250165352,0.05196259,2628.8,2628.3,14.99932]
[1727250165556,0.05196259,2628.8,2628.4,3.80451]
[1727250165871,0.05172006,2628.7,2628.4,5.10531078]
[1727250166070,9.208243,2629.0,2628.5,3.0]
[1727250166301,0.05161956,2628.6,2628.5,3.0]
[1727250166457,8.37116,2629.0,2628.5,3.0]
[1727250166776,8.37116,2629.0,2628.4,5.10531078]
[1727250166777,0.05161956,2628.6,2628.4,4.30080078]
[1727250167223,0.05161956,2628.6,2628.4,3.0]
[1727250167955,0.05161956,2628.6,2628.3,1.30080078]
[1727250169066,0.05161956,2628.6,2628.3,1.70279123]
[1727250169600,0.05161956,2628.6,2628.3,1.30080078]
[1727250169810,0.05120347,2628.5,2628.3,1.30080078]
[1727250171670,0.05161956,2628.6,2628.3,1.30080078]
[1727250171870,0.05161956,2628.6,2628.2,7.59438]
[1727250172082,0.05161956,2628.6,2628.3,5.10545078]
[1727250172313,0.05161956,2628.6,2628.4,3.0]
[1727250173303,0.05132888,2628.5,2628.4,3.0]
[1727250180808,0.05132888,2628.5,2628.4,8.90863657]
[1727250180986,0.05132888,2628.5,2628.4,8.83255008]
[1727250181191,0.05161956,2628.6,2628.5,6.80445]
[1727250181402,0.05161956,2628.6,2628.5,3.0]
[1727250181633,0.09983156,2628.6,2628.5,3.0]
[1727250181820,0.05161956,2628.6,2628.5,3.0]
[1727250182022,0.09984607,2628.6,2628.5,3.0]
[1727250182396,0.09984607,2628.6,2628.5,6.80445]
[1727250182733,0.09984607,2628.6,2628.5,3.0]
[1727250184518,0.09984607,2628.6,2628.3,3.0]
[1727250184697,0.09984607,2628.6,2628.3,4.30080078]
[1727250185028,0.09984607,2628.6,2628.3,8.10553078]
[1727250185531,0.09984607,2628.6,2628.3,6.80473]
[1727250186105,0.09984607,2628.6,2628.2,6.80488]
[1727250187121,0.09984607,2628.6,2628.3,3.8047]
[1727250187419,0.09984607,2628.6,2628.4,3.0]
[1727250188205,0.09984607,2628.6,2628.5,6.80445]
[1727250188742,0.09984607,2628.6,2628.5,8.10525078]
[1727250190005,0.7635,2628.5,2628.0,0.0380805]
[1727250190532,0.05161956,2628.6,2628.1,0.7877]
[1727250190701,0.05161956,2628.6,2628.1,2.08850078]
[1727250190899,0.0475271,2628.5,2628.4,0.7877]
[1727250191750,0.0475271,2628.5,2628.4,3.7877]
[1727250192753,0.0475271,2628.5,2628.4,0.7877]
[1727250193764,0.0475271,2628.5,2628.1,4.81849339]
[1727250193962,0.0475271,2628.5,2628.1,8.62351339]
[1727250194521,0.0475271,2628.5,2628.1,4.81849339]
[1727250194844,0.0475271,2628.5,2628.1,4.185531]
[1727250197054,3.8519771,2628.5,2628.1,4.185531]
[1727250200433,0.0475271,2628.5,2628.1,4.185531]
[1727250200761,0.0475271,2628.5,2628.2,1.30080078]
[1727250201179,0.0475271,2628.5,2628.1,7.990471]
[1727250201476,0.0475271,2628.5,2628.1,9.27480324]
[1727250202977,0.0475271,2628.5,2628.2,3.80483]
[1727250203191,0.0475271,2628.5,2628.3,3.0]
[1727250203742,0.0475271,2628.5,2628.2,5.10563078]
[1727250203743,0.0475271,2628.5,2628.2,4.30080078]
[1727250203943,0.0475271,2628.5,2628.2,4.06136845]
[1727250204141,0.0475271,2628.5,2628.2,7.86623845]
[1727250204448,0.0475271,2628.5,2628.2,4.06136845]
[1727250205048,0.0475271,2628.5,2628.2,4.13745847]
[1727250205592,0.0475271,2628.5,2628.2,7.94225847]
[1727250205888,0.0475271,2628.5,2628.2,7.86616845]
[1727250206069,0.0475271,2628.5,2628.2,4.06136845]
[1727250206869,0.0475271,2628.5,2628.2,7.86622845]
[1727250207086,0.0475271,2628.5,2628.2,4.06136845]
[1727250207388,0.0475271,2628.5,2628.2,3.0]
[1727250207588,0.0475271,2628.5,2628.0,0.0380805]
[1727250207589,3.8519771,2628.5,2628.0,6.8432205]
[1727250208792,3.8519771,2628.5,2628.0,3.0380805]
[1727250208992,3.8519771,2628.5,2628.0,6.8431605]
[1727250209196,0.79847125,2628.4,2628.0,8.19963381]
[1727250209395,4.60316125,2628.4,2628.0,3.0380805]
[1727250209544,0.04470671,2628.3,2628.0,3.0380805]
[1727250210166,0.84317796,2628.3,2628.0,3.0380805]
[1727250210778,0.04470671,2628.3,2628.0,3.0380805]
[1727250211288,3.80503,2628.1,2628.0,0.0380805]
[1727250211668,4.64800685,2628.1,2628.0,0.0380805]
[1727250212056,4.6130356,2628.1,2628.0,0.0380805]
[1727250212376,5.81088811,2628.1,2628.0,0.0380805]
[1727250212547,7.14633414,2628.1,2628.0,0.0380805]
[1727250215202,6.74686014,2628.1,2628.0,0.0380805]
[1727250215365,5.94848163,2628.1,2628.0,0.0380805]
[1727250216053,6.74668149,2628.1,2628.0,0.0380805]
[1727250222762,5.94848163,2628.1,2628.0,0.0380805]
[1727250222895,7.14633414,2628.1,2628.0,0.0380805]
[1727250223547,5.94848163,2628.1,2628.0,0.0380805]
[1727250223899,7.14442341,2628.1,2628.0,0.0380805]
[1727250230347,5.94848163,2628.1,2628.0,0.0380805]
[1727250230855,1.37995163,2628.1,2628.0,0.0380805]
[1727250231177,0.0445056,2628.1,2628.0,0.0380805]
[1727250231317,3.80489,2628.2,2628.0,0.0380805]
[1727250232852,3.80476,2628.3,2628.1,0.7882]
[1727250233053,0.65608159,2628.3,2628.1,0.7882]
[1727250233209,0.79668409,2628.5,2628.1,2.08900078]
[1727250233415,5.05191134,2628.6,2628.1,4.59315]
[1727250233416,0.03810422,2628.2,2628.1,4.59315]
[1727250234556,4.65265365,2628.6,2628.0,0.0380805]
[1727250234717,3.80461,2628.4,2628.0,3.0380805]
[1727250234969,3.80476,2628.3,2628.0,0.0380805]
[1727250237051,0.03808389,2628.2,2628.0,0.0380805]
[1727250237348,8.20471144,2628.4,2628.0,0.0380805]
[1727250237563,0.0380362,2628.1,2628.0,0.0380805]
[1727250237709,8.40599409,2628.4,2628.0,0.0380805]
[1727250237912,5.69672971,2628.4,2628.0,0.0380805]
[1727250238113,0.03821084,2628.3,2628.0,0.0380805]
[1727250241651,4.60120409,2628.5,2628.0,3.8432505]
[1727250241858,0.03806999,2628.2,2628.0,3.8432505]
[1727250242062,0.79668409,2628.5,2628.0,3.8432505]
[1727250242353,4.60113409,2628.5,2628.0,3.8431805]
[1727250242555,0.03829747,2628.4,2628.0,3.8431805]
[1727250242757,0.83498156,2628.4,2628.0,3.8431805]
[1727250243125,0.03829747,2628.4,2628.0,3.8431805]
[1727250243561,0.83498156,2628.4,2628.0,3.8431805]
[1727250244330,1.57620391,2628.4,2628.0,3.8431805]
[1727250245625,5.38080391,2628.4,2628.0,3.8431805]
[1727250246079,0.83498156,2628.4,2628.1,3.80501]
[1727250246277,0.03829747,2628.4,2628.3,5.93234078]
[1727250246463,0.03829747,2628.4,2628.3,4.63154]
[1727250246658,0.05161956,2628.6,2628.3,4.63154]
[1727250246831,0.03835721,2628.4,2628.3,4.63154]
[1727250247036,0.05161956,2628.6,2628.3,4.63154]
[1727250247237,0.03888798,2628.4,2628.3,4.63154]
[1727250247449,0.05161956,2628.6,2628.3,4.63154]
[1727250247653,0.03875497,2628.4,2628.3,0.8268]
[1727250247976,0.03860711,2628.4,2628.3,0.8268]
[1727250248137,0.84830365,2628.6,2628.3,0.8268]
[1727250248340,0.03860711,2628.4,2628.3,0.8268]
[1727250248578,0.84830365,2628.6,2628.3,0.8268]
[1727250248781,0.03825711,2628.4,2628.3,0.8268]
[1727250248979,1.59240216,2628.6,2628.3,0.8268]
[1727250249181,0.03818437,2628.4,2628.3,4.63152]
[1727250249356,0.84830365,2628.6,2628.3,4.63152]
[1727250249680,0.03821079,2628.4,2628.3,0.8268]
[1727250249843,0.79668409,2628.4,2628.3,0.8268]
[1727250250041,0.83489488,2628.4,2628.0,4.6699605]
[1727250250354,1.66490232,2628.4,2628.0,4.6699605]
[1727250252090,1.66490232,2628.4,2628.0,3.8648805]
[1727250252091,0.79668409,2628.3,2628.0,3.8648805]
[1727250252389,0.03797547,2628.2,2628.0,3.8648805]
[1727250252687,1.62669153,2628.4,2628.0,3.8648805]
[1727250252993,0.58304792,2628.3,2628.0,3.8648805]
[1727250253141,0.038076,2628.3,2628.0,3.8648805]
[1727250253997,0.83476009,2628.3,2628.0,0.8648805]
[1727250258064,4.63950009,2628.3,2628.0,0.8648805]
[1727250258259,0.83476009,2628.3,2628.0,0.8648805]
[1727250258458,1.78398332,2628.3,2628.0,0.8648805]
[1727250259059,0.79668409,2628.2,2628.0,0.8648805]
[1727250260029,1.78398332,2628.3,2628.0,0.8648805]
[1727250260600,1.78398332,2628.3,2628.0,4.6700405]
[1727250260806,0.83476009,2628.3,2628.0,4.6700405]
[1727250262196,0.79668409,2628.2,2628.0,0.8648805]
[1727250262495,0.83465956,2628.2,2628.0,0.8648805]
[1727250262707,0.03797547,2628.2,2628.0,0.8648805]
[1727250263063,0.79668409,2628.3,2628.0,0.8648805]
[1727250263574,0.03794905,2628.2,2628.0,0.8648805]
[1727250263780,0.79668409,2628.3,2628.0,4.6700305]
[1727250264078,0.0378058,2628.1,2628.0,7.6700305]
[1727250264280,0.79668409,2628.2,2628.0,7.6700305]
[1727250264466,0.0378058,2628.1,2628.0,7.6700305]
[1727250266101,0.79668409,2628.3,2628.0,0.8648805]
[1727250266310,0.03714827,2628.1,2628.0,0.8648805]
[1727250266534,0.79668409,2628.3,2628.0,0.8648805]
[1727250266720,0.79668409,2628.2,2628.0,0.8648805]
[1727250267051,0.83398574,2628.2,2628.0,0.8648805]
[1727250268013,0.83398574,2628.2,2628.0,0.0380805]
[1727250268218,1.5872497,2628.2,2628.0,0.0380805]
[1727250269903,0.79668409,2628.1,2628.0,0.0380805]
[1727250270130,0.83398574,2628.2,2628.0,0.0380805]
[1727250270317,0.03719239,2628.1,2628.0,0.0380805]
[1727250270532,0.83387648,2628.1,2628.0,0.0380805]
[1727250271047,0.03719239,2628.1,2628.0,0.0380805]
[1727250271397,0.83387648,2628.1,2628.0,0.0380805]
[1727250274477,1.23313417,2628.1,2628.0,0.0380805]
[1727250275055,0.83634649,2628.1,2628.0,0.0380805]
[1727250275563,1.23313417,2628.1,2628.0,0.0380805]
[1727250276472,1.23657525,2628.1,2628.0,0.0380805]
[1727250276978,4.70525498,2628.1,2628.0,0.0380805]
[1727250277344,2.49286461,2628.1,2628.0,0.0380805]
[1727250277646,0.90022498,2628.1,2628.0,0.0380805]
[1727250278043,2.099562,2628.1,2628.0,0.0380805]
[1727250278582,0.90022498,2628.1,2628.0,0.0380805]
[1727250278784,2.09953099,2628.1,2628.0,0.0380805]
[1727250278984,0.90022498,2628.1,2628.0,0.0380805]
[1727250279144,0.03719239,2628.1,2628.0,0.0380805]
[1727250279345,1.23650111,2628.1,2628.0,0.0380805]
[1727250279793,0.83665169,2628.1,2628.0,0.8223805]
[1727250279948,1.23650111,2628.1,2628.0,0.8223805]
[1727250280354,0.83670451,2628.1,2628.0,0.8223805]
[1727250281648,0.83670451,2628.1,2628.0,0.0380805]
[1727250281649,1.23650111,2628.1,2628.0,0.0380805]
[1727250281889,1.5993664,2628.1,2628.0,0.0380805]
[1727250282086,5.4043964,2628.1,2628.0,0.0380805]
[1727250282649,5.79772731,2628.1,2628.0,0.0380805]
[1727250282852,4.20508768,2628.1,2628.0,0.0380805]
[1727250283049,5.79772731,2628.1,2628.0,0.0380805]
[1727250284564,4.20508768,2628.1,2628.0,0.0380805]
[1727250284762,5.79772731,2628.1,2628.0,0.0380805]
[1727250286501,4.20508768,2628.1,2628.0,0.0380805]
[1727250286862,5.79772731,2628.1,2628.0,0.0380805]
[1727250287265,4.20508768,2628.1,2628.0,0.0380805]
[1727250290180,5.79772731,2628.1,2628.0,0.0380805]
[1727250290362,4.20508768,2628.1,2628.0,0.0380805]
[1727250290567,5.79772731,2628.1,2628.0,0.0380805]
[1727250291113,4.20508768,2628.1,2628.0,0.0380805]
[1727250292923,5.79772731,2628.1,2628.0,0.0380805]
[1727250294720,4.20508768,2628.1,2628.0,0.0380805]
[1727250295028,6.20360727,2628.1,2628.0,0.0380805]
[1727250298334,6.20392997,2628.1,2628.0,0.0380805]
[1727250300495,4.96858768,2628.1,2628.0,0.0380805]
[1727250300727,7.36719842,2628.1,2628.0,0.0380805]
[1727250301135,4.96858768,2628.1,2628.0,0.0380805]
[1727250301704,7.3667129,2628.1,2628.0,0.0380805]
[1727250302330,4.96858768,2628.1,2628.0,0.0380805]
[1727250302908,7.3667129,2628.1,2628.0,0.0380805]
[1727250303327,4.96858768,2628.1,2628.0,0.0380805]
[1727250313249,4.20508768,2628.1,2628.0,0.0380805]
[1727250313466,0.03719239,2628.1,2628.0,0.8163805]
[1727250313773,1.23472312,2628.1,2628.0,0.8163805]
[1727250314172,0.83552909,2628.1,2628.0,0.8163805]
[1727250314857,0.83555687,2628.1,2628.0,0.8163805]
[1727250315051,0.83554191,2628.1,2628.0,0.8163805]
[1727250315267,0.83556787,2628.1,2628.0,0.8163805]
[1727250315580,0.83556948,2628.1,2628.0,0.8163805]
[1727250315764,0.03719239,2628.1,2628.0,0.8163805]
[1727250316879,0.83559547,2628.1,2628.0,0.8163805]
[1727250317255,0.03719239,2628.1,2628.0,0.8163805]
[1727250317966,0.83561035,2628.1,2628.0,0.8163805]
[1727250318465,1.23472312,2628.1,2628.0,0.8163805]
[1727250318682,0.83563993,2628.1,2628.0,0.8163805]
[1727250318981,0.83563348,2628.1,2628.0,0.8163805]
[1727250319186,1.23472312,2628.1,2628.0,0.8163805]
[1727250319338,5.90300125,2628.1,2628.0,0.0380805]
[1727250319542,6.30229767,2628.1,2628.0,0.0380805]
[1727250320775,6.70183706,2628.1,2628.0,0.0380805]
[1727250321278,7.46533706,2628.1,2628.0,0.0380805]
[1727250321487,7.86461037,2628.1,2628.0,0.0380805]
[1727250321647,5.46897052,2628.1,2628.0,0.0380805]
[1727250321850,7.86461037,2628.1,2628.0,0.0380805]
[1727250323263,5.46897052,2628.1,2628.0,0.0380805]
[1727250328867,8.26323608,2628.1,2628.0,0.0380805]
[1727250329088,5.46897052,2628.1,2628.0,0.0380805]
[1727250330320,6.01897052,2628.1,2628.0,0.0380805]
[1727250330885,9.01897052,2628.1,2628.0,0.0380805]
[1727250331978,11.81247755,2628.1,2628.0,0.0380805]
[1727250333210,12.31924983,2628.1,2628.0,0.0380805]
[1727250333713,9.01897052,2628.1,2628.0,0.0380805]
[1727250335584,9.01897052,2628.1,2627.2,0.0380805]
[1727250335585,3.80618,2627.3,2627.2,0.0380805]
[1727250335883,7.13550916,2627.3,2627.2,0.0380805]
[1727250336085,5.14101448,2627.3,2627.2,0.0380805]
[1727250336390,7.13500267,2627.3,2627.2,0.0380805]
[1727250336591,5.14101448,2627.3,2627.2,0.0380805]
[1727250336792,8.34544013,2627.3,2627.2,0.0380805]
[1727250337118,8.34543755,2627.3,2627.2,0.0380805]
[1727250337623,8.34515732,2627.3,2627.2,0.0380805]
[1727250337823,6.35142857,2627.3,2627.2,0.0380805]
[1727250338031,9.50850504,2627.3,2627.2,0.0380805]
[1727250338188,7.11492857,2627.3,2627.2,0.0380805]
[1727250341725,5.81412779,2627.3,2627.2,0.0380805]
[1727250341926,9.10659698,2627.3,2627.2,0.0380805]
[1727250342084,7.11492857,2627.3,2627.2,0.0380805]
[1727250342432,9.10634518,2627.3,2627.2,0.0380805]
[1727250343690,7.11492857,2627.3,2627.2,0.0380805]
[1727250344144,9.10618684,2627.3,2627.2,0.0380805]
[1727250344355,7.80538606,2627.3,2627.2,0.0380805]
[1727250344667,3.8402137,2627.3,2627.2,0.0380805]
[1727250345112,4.63648547,2627.3,2627.2,0.0380805]
[1727250345812,5.93728625,2627.3,2627.2,0.0380805]
[1727250346015,7.13202074,2627.3,2627.2,0.8353805]
[1727250346215,6.73386342,2627.3,2627.2,0.8353805]
[1727250346418,5.14101448,2627.3,2627.2,0.0380805]
[1727250346722,6.39410645,2627.3,2627.2,0.0380805]
[1727250347131,7.98695539,2627.3,2627.2,0.0380805]
[1727250347306,6.39410645,2627.3,2627.2,0.0380805]
[1727250347936,7.58850424,2627.3,2627.2,0.0380805]
[1727250348305,7.98668137,2627.3,2627.2,0.0380805]
[1727250349002,7.58848229,2627.3,2627.2,0.0380805]
[1727250350428,8.38479768,2627.3,2627.2,0.0380805]
[1727250351436,7.98642666,2627.3,2627.2,0.0380805]
[1727250351660,6.39410645,2627.3,2627.2,0.0380805]
[1727250352264,7.98645485,2627.3,2627.2,0.0380805]
[1727250352560,6.36007275,2627.3,2627.2,0.0380805]
[1727250352747,8.35058368,2627.3,2627.2,0.0380805]
[1727250353725,7.95223801,2627.3,2627.2,0.0380805]
[1727250354868,6.65143723,2627.3,2627.2,0.0380805]
[1727250355020,7.95223801,2627.3,2627.2,0.0380805]
[1727250355226,6.36007275,2627.3,2627.2,0.0380805]
[1727250355757,8.35029254,2627.3,2627.2,0.0380805]
[1727250355956,6.36007275,2627.3,2627.2,0.0380805]
[1727250356158,7.95215958,2627.3,2627.2,0.0380805]
[1727250357170,6.36007275,2627.3,2627.2,0.0380805]
[1727250357664,8.35013287,2627.3,2627.2,0.0380805]
[1727250358066,8.35012936,2627.3,2627.2,0.0380805]
[1727250358238,6.36007275,2627.3,2627.2,0.0380805]
[1727250359753,6.36007275,2627.3,2626.5,0.0380805]
[1727250359754,0.7635,2626.6,2626.5,0.0380805]
[1727250360031,7.46382345,2626.6,2626.5,0.0380805]
[1727250360251,5.87150078,2626.6,2626.5,0.0380805]
[1727250360448,7.86190412,2626.6,2626.5,0.0380805]
[1727250360649,7.09840412,2626.6,2626.5,0.0380805]
[1727250360854,6.56676163,2626.6,2626.5,0.0380805]
[1727250361026,7.86756241,2626.6,2626.5,0.0380805]
[1727250361571,7.86791648,2626.6,2626.5,0.0380805]
[1727250361951,6.27489619,2626.6,2626.5,0.0380805]
[1727250362162,7.8675855,2626.6,2626.5,0.0380805]
[1727250362337,7.86795809,2626.6,2626.5,0.0380805]
[1727250362539,6.56715731,2626.6,2626.5,0.0380805]
[1727250362740,7.86769774,2626.6,2626.5,0.0380805]
[1727250363487,7.86781266,2626.6,2626.5,0.0380805]
[1727250363635,7.86788567,2626.6,2626.5,0.0380805]
[1727250364260,8.2656972,2626.6,2626.5,0.0380805]
[1727250365774,9.0291972,2626.6,2626.5,0.0380805]
[1727250365978,9.03031179,2626.6,2626.5,0.0380805]
[1727250366475,7.03839619,2626.6,2626.5,0.0380805]
[1727250366701,10.03839619,2626.6,2626.5,0.0380805]
[1727250371513,10.03839619,2626.6,2626.0,0.8317]
[1727250371686,6.30409435,2626.1,2626.0,0.8317]
[1727250371889,6.30409435,2626.1,2625.8,0.7928]
[1727250371890,3.80823,2625.9,2625.8,0.7928]
[1727250372079,5.10903078,2625.9,2625.8,0.7928]
[1727250372418,5.10903078,2625.9,2625.7,0.8308805]
[1727250372419,3.80836,2625.8,2625.7,0.8308805]
[1727250374013,4.60524318,2625.8,2625.7,0.8308805]
[1727250374621,3.80836,2625.8,2625.7,0.8308805]
[1727250376214,5.10916078,2625.8,2625.7,0.8308805]
[1727250376393,5.90604396,2625.8,2625.7,0.8308805]
[1727250376771,5.10916078,2625.8,2625.7,0.8308805]
[1727250377177,5.90604396,2625.8,2625.7,0.8308805]
[1727250377372,7.0246442,2625.8,2625.7,0.8308805]
[1727250380782,6.22776102,2625.8,2625.7,0.8308805]
[1727250381920,7.0246442,2625.8,2625.7,0.8308805]
[1727250382134,6.22776102,2625.8,2625.7,0.8308805]
[1727250384132,7.02452807,2625.8,2625.7,0.8308805]
[1727250384692,6.22776102,2625.8,2625.7,0.8308805]
[1727250385104,7.02452807,2625.8,2625.7,0.8308805]
[1727250385636,6.22776102,2625.8,2625.7,0.8308805]
[1727250386936,7.02452807,2625.8,2625.7,0.0380805]
[1727250387231,7.4229116,2625.8,2625.7,0.0380805]
[1727250388418,6.22776102,2625.8,2625.7,0.0380805]
[1727250389139,6.22776102,2625.8,2625.7,0.8230805]
[1727250389362,7.4229116,2625.8,2625.7,0.8230805]
[1727250389632,7.4229116,2625.8,2625.7,0.0380805]
[1727250389633,6.22776102,2625.8,2625.7,0.0380805]
[1727250389842,7.4229116,2625.8,2625.7,0.0380805]
[1727250390523,6.22776102,2625.8,2625.7,0.0380805]
[1727250390719,7.4229116,2625.8,2625.7,0.0380805]
[1727250395369,6.22776102,2625.8,2625.7,0.0380805]
[1727250396444,7.82129512,2625.8,2625.7,0.0380805]
[1727250397647,8.21996931,2625.8,2625.7,0.0380805]
[1727250398441,6.22776102,2625.8,2625.7,0.0380805]
[1727250398618,8.22151915,2625.8,2625.7,0.0380805]
[1727250398959,6.22776102,2625.8,2625.7,0.0380805]
[1727250399115,8.22145737,2625.8,2625.7,0.0380805]
[1727250399830,8.22178613,2625.8,2625.7,0.0380805]
[1727250401436,6.22776102,2625.8,2625.7,0.0380805]